[Event "Marienbad A2-GM 2024"]
[Site "Marianske Lazne"]
[Date "2024.01.17"]
[Round "6.10"]
[White "Lalic, Bogdan"]
[Black "Raczek, Krzysztof"]
[Result "1-0"]
[ECO "D37"]
[WhiteElo "2349"]
[BlackElo "2347"]
[Annotator "TA"]
[PlyCount "69"]
[EventDate "2024.01.10"]
[EventType "tourn"]
[EventCountry "CZE"]
[SourceTitle "playchess.com"]
[Source "ChessBase"]
[SourceQuality "1"]
[TimeControl "40/5400+30:1800+30"]

{[%evp 19,69,4,4,0,0,15,66,55,31,2,166,165,184,171,158,168,227,235,262,220,220,217,260,154,175,182,184,179,183,143,218,212,198,192,386,370,506,491,524,522,501,452,497,499,498,469,604,604,585,533,526,526]} 1. d4 {[%emt 0:03:38]} Nf6 {[%emt 0:00:08]} 2. c4 {[%emt 0:00:08]} e6 {[%emt 0:00:05]} 3. Nf3 {[%emt 0:00:10]} d5 {[%emt 0:00:07]} 4. Nc3 {[%emt 0:00:23]} dxc4 {[%emt 0:00:10]} 5. e3 {[%emt 0:00:46]} c5 {[%emt 0:00:14]} 6. Bxc4 {[%emt 0:00:10]} a6 {[%emt 0:00:07]} 7. a4 {[%emt 0:00:29]} Nc6 {[%emt 0:00:40]} 8. O-O {[%emt 0:00:10]} Be7 {[%emt 0:00:24]} 9. Qe2 {[%emt 0:00:39]} O-O {[%emt 0:00:08]} 10. Rd1 {[%emt 0:00:11]} cxd4 {[%emt 0:00:10]} 11. Nxd4 {[%emt 0:00:21] D27: Queen's Gambit Accepted: Classical main line: 7 e4!? and 7 a4.} Nxd4 {[%emt 0:00:36]} 12. exd4 {[%emt 0:00:09][%cal Be3d4,Bd4d5,Bd5d6,Bd6d7][%mdl 32] [#]} Bd6 $146 {[%emt 0:06:25]} (12... Re8 $11) ({Predecessor:} 12... Nd5 13. Qe4 f5 {½-½ Ovsejevitsch,S (2562)-Zubov,A (2591) Mukachevo Summer op 2013 (9)}) 13. Bg5 $1 $14 {[%emt 0:02:06] White is slightly better.} h6 {[%emt 0:01:25]} 14. Bh4 {[%emt 0:00:18]} Re8 $2 {[%emt 0:33:06] [#] This move loses the game for Black.} (14... g5 $1 $11 {and Black stays safe.} 15. Bg3 Bxg3 16. hxg3 Re8) 15. Ne4 $1 $18 {[%emt 0:01:17] Strongly threatening Nxf6+.} Be7 {[%emt 0:01:17]} 16. Bxf6 {[%emt 0:00:24]} Bxf6 {[%emt 0:00:08]} 17. d5 {[%emt 0:00:04] White is much more active. The black rooks are badly placed.} e5 {[%emt 0:03:28]} (17... exd5 {was called for.} 18. Nxf6+ (18. Bxd5 Qe7 $16) (18. Rxd5 Bd7 $16) 18... gxf6 19. Rxd5 Qe7) 18. d6 {[%emt 0:00:37][%cal Od6d7] And now d7! would win.} Bf5 {[%emt 0:05:47]} 19. Bd5 {[%emt 0:08:08]} Bxe4 {[%emt 0:06:09]} 20. Qxe4 {[%emt 0:01:15]} Rb8 {[%emt 0:03:14] Black is weak on the light squares} 21. Bxb7 {[%emt 0:14:08]} (21. Rac1 $18) 21... Qb6 {[%emt 0:01:18]} 22. d7 {[%emt 0:00:48]} Red8 {[%emt 0:00:52]} 23. Bc8 {[%emt 0:00:20]} a5 {[%emt 0:00:45]} 24. b3 {[%emt 0:02:09]} Qa7 {[%emt 0:02:52]} (24... Qe6 $16 {keeps fighting.} 25. Rac1 Rb6) 25. Qd5 {[%emt 0:04:31]} Rb4 {[%emt 0:01:54]} 26. Rac1 {[%emt 0:00:57]} Kh7 $2 {[%emt 0:08:07] [#]} (26... e4 27. Rc2 Qb6) 27. g3 {[%emt 0:03:39]} ({Not} 27. Qxf7 Rf4 $18) 27... Kg8 {[%emt 0:00:41]} 28. Rc5 {[%emt 0:01:55] White is clearly winning.} Rxb3 {[%emt 0:01:59]} 29. Rxa5 {[%emt 0:00:25]} Qc7 {[%emt 0:00:14]} 30. Qc5 {[%emt 0:05:33]} Qxc5 {[%emt 0:05:39]} 31. Rxc5 {[%emt 0:00:08][%cal Ba5c5,Bc5c1,Bc1c4][%mdl 32]} Kf8 {[%emt 0:00:03]} 32. a5 {[%emt 0:00:22][%cal Ba4a5,Ba5a6][%mdl 32]} Ke7 {[%emt 0:00:04]} 33. a6 {[%emt 0:00:24]} Ra3 {[%emt 0:00:03]} 34. Rcc1 {[%emt 0:00:32]} e4 {[%emt 0:00:44]} 35. Rc4 {[%emt 0:00:11] Weighted Error Value: White=0.18 (very precise) /Black=0.46} 1-0

[Event "Marienbad A2-GM 2024"]
[Site "Marianske Lazne"]
[Date "2024.01.18"]
[Round "7.6"]
[White "Raczek, Krzysztof"]
[Black "Morris, James"]
[Result "0-1"]
[ECO "A06"]
[WhiteElo "2347"]
[BlackElo "2416"]
[Annotator "TA"]
[PlyCount "132"]
[EventDate "2024.01.10"]
[EventType "tourn"]
[EventCountry "CZE"]
[SourceTitle "playchess.com"]
[Source "ChessBase"]
[SourceQuality "1"]
[TimeControl "40/5400+30:1800+30"]

{[%evp 10,132,15,16,32,-66,-59,-122,-116,-118,-115,-116,-59,-63,-56,-66,-56,-56,-54,-54,-54,-60,-67,-67,-68,-70,-64,-63,-68,-76,-69,-77,-69,-61,-33,-33,-33,-40,-40,-47,-20,-52,-57,-61,-58,-62,-60,-59,-64,-67,-56,-80,-83,-83,-52,-43,-41,-52,-39,-45,-56,-60,-42,-51,-26,-9,-22,-46,18,-89,-99,-119,-124,-120,-104,-125,-80,-170,-127,-350,-341,-409,-403,-403,-396,-389,-374,-528,-410,-791,-799,-789,-764,-841,-653,-1137,-1031,-1045,-990,-987,-908,-1127,-1094,-1388,-1226,-1565,-1503,-1273,-984,-7110,-6477,-29974,-29976,-29974,-29976,-29985,-29975,-29975,-29976,-29984,-29980,-29982,-29979,-29979,-29980]} 1. Nf3 {[%emt 0:00:03]} d5 {[%emt 0:02:14]} 2. e3 {[%emt 0:00:10]} c5 {[%emt 0:01:45]} 3. b3 {[%emt 0:00:08]} Nf6 {[%emt 0:00:13]} 4. Bb2 {[%emt 0:00:22]} Nc6 {[%emt 0:00:25]} 5. Bb5 {[%emt 0:00:15]} Bd7 {[%emt 0:00:21]} 6. O-O {[%emt 0:00:25]} g6 {[%emt 0:01:48] [#] A06: Réti Opening: 1 Nf3 d5.} 7. e4 $146 {[%emt 0:12:25]} ({Predecessor:} 7. c4 dxc4 8. Bxc4 Bg7 9. d4 cxd4 10. Nxd4 O-O 11. Nd2 Rc8 12. Rc1 a6 13. N2f3 Qa5 14. Qe2 Nxd4 15. Bxd4 {1-0 Carlsen,M (2839)-Vidit,S (2716) Chess.com Speed Chess blitz 2023 (1.22)}) 7... dxe4 $15 {[%emt 0:10:26]} 8. Ng5 {[%emt 0:04:42] [#]} (8. Bxc6 $15 Bxc6 9. Ne5) 8... Nd4 $1 $17 {[%emt 0:00:07][%mdl 64] Discovered Attack. Black is better.} 9. Bc4 {[%emt 0:00:22][%csl Gg5][%cal Rc4f7]} e6 {[%emt 0:00:04]} 10. Re1 {[%emt 0:00:14]} Bg7 {[%emt 0:07:06]} (10... Bh6 $17 11. Nxe4 Nxe4 12. Rxe4 Bc6 13. Bxd4 cxd4) 11. Nc3 $15 {[%emt 0:00:43]} Bc6 {[%emt 0:04:24]} 12. Ncxe4 {[%emt 0:02:15]} Nxe4 {[%emt 0:05:41]} 13. Nxe4 {[%emt 0:00:18]} O-O {[%emt 0:01:31]} 14. c3 {[%emt 0:01:07]} Nf5 {[%emt 0:05:25]} 15. Bf1 {[%emt 0:20:10]} b6 {[%emt 0:00:29]} 16. d3 {[%emt 0:02:25]} Qc7 {[%emt 0:00:58]} 17. Qe2 {[%emt 0:00:17]} Rad8 {[%emt 0:02:27]} 18. Rad1 {[%emt 0:00:19]} Rd7 {[%emt 0:01:29]} 19. Bc1 {[%emt 0:00:55]} Ne7 {[%emt 0:05:54]} 20. Qc2 {[%emt 0:02:41]} Nd5 {[%emt 0:00:40]} 21. a3 {[%emt 0:01:55]} h6 {[%emt 0:00:55]} (21... f5 22. Ng5 $16) 22. Bb2 {[%emt 0:07:20]} Nf6 {[%emt 0:11:33]} 23. Nxf6+ {[%emt 0:03:51]} Bxf6 {[%emt 0:00:02]} 24. b4 {[%emt 0:00:35]} Ba8 {[%emt 0:03:07]} (24... Bb7 {with more complications.} 25. c4 Bd4 26. b5 h5) 25. bxc5 {[%emt 0:10:40]} (25. c4 {seems wilder.} Bd4 26. Ra1 Bb7 27. Qd2) 25... Qxc5 {[%emt 0:00:07]} 26. Qd2 {[%emt 0:01:12]} Bg7 {[%emt 0:00:55] Black is much more active.} 27. d4 {[%emt 0:00:32]} Qc6 {[%emt 0:02:23]} 28. Qe3 {[%emt 0:01:54]} Rfd8 {[%emt 0:00:10]} 29. Ra1 {[%emt 0:01:30]} Rd5 {[%emt 0:00:36]} 30. Qf3 {[%emt 0:08:43]} Qc7 {[%emt 0:03:59][%cal Rd5d4]} 31. Qg3 {[%emt 0:00:37]} R8d6 {[%emt 0:00:53]} 32. Bc1 {[%emt 0:00:20]} Rd7 {[%emt 0:07:53]} 33. Bf4 {[%emt 0:00:30]} Qd8 {[%emt 0:00:11]} 34. Ra2 {[%emt 0:01:58]} Bc6 {[%emt 0:00:20]} 35. h3 {[%emt 0:03:12]} Ra5 {[%emt 0:00:14]} 36. Bd3 {[%emt 0:01:03]} Qe7 {[%emt 0:10:57]} 37. Rae2 $1 {[%emt 0:02:54][%cal Od3g6]} Qf6 {[%emt 0:05:47]} (37... Qxa3 $2 38. Rxe6 fxe6 39. Qxg6 $18) (37... Rxa3 38. Bxg6 Kh8 39. Bb1 (39. Be4 Bxe4 40. Rxe4 Qf8 $14) 39... Bxd4 40. Be5+ (40. Bxh6 Rxc3 41. Qg4 Rc5 $11) 40... Bxe5 41. Qxe5+ f6 42. Qb8+ (42. Qxe6 Qxe6 43. Rxe6 Ba4 $16) 42... Rd8 43. Rxe6 Rxb8 44. Rxe7 $16) 38. Bc1 {[%emt 0:01:48]} Bb5 {[%emt 0:01:52]} (38... Bf8 $15) 39. c4 {[%emt 0:02:14] [#]} (39. Re5 $1 $11 {keeps the balance.} a6 40. Bc2) 39... Bc6 $1 $17 {[%emt 0:00:50]} (39... Qxd4 40. Bxg6 fxg6 41. cxb5 $16) 40. d5 {[%emt 0:02:45]} exd5 {[%emt 0:00:03]} 41. Bb2 {[%emt 0:30:06]} d4 {[%emt 0:30:12]} 42. Bc1 {[%emt 0:00:03] Inhibits Rg5.} Rd8 {[%emt 0:00:00][%cal Bd7d8,Bd8e8,Be8e1,Be1c1,Bc1c2,Bc2f2,Bf2f4][%mdl 32]} 43. Qc7 {[%emt 0:00:00]} (43. Bd2 $17) 43... Qd6 {[%emt 0:00:00]} 44. Re8+ $2 {[%emt 0:00:00] Loses the game.} Bxe8 $19 {[%emt 0:00:00]} 45. Rxe8+ {[%emt 0:00:00]} Rxe8 {[%emt 0:00:00]} 46. Qxd6 {[%emt 0:00:00] Strongly threatening Bd2.} Re1+ {[%emt 0:00:00]} 47. Bf1 {[%emt 0:00:00] aiming for Qb8+.} Rxc1 {[%emt 0:00:00]} 48. g4 {[%emt 0:00:00]} (48. g3 $142) 48... Bf8 {[%emt 0:00:00]} 49. Qd8 {[%emt 0:00:00]} (49. Qf4 $142 Rd1 50. Kg2) 49... Rxa3 {[%emt 0:00:00] Hoping for ...Raa1.} 50. Kg2 {[%emt 0:00:00]} Rc2 {[%emt 0:00:00]} 51. c5 {[%emt 0:00:00]} bxc5 {[%emt 0:00:00]} 52. Qd5 {[%emt 0:00:00]} Raa2 {[%emt 0:00:00]} 53. Bc4 {[%emt 0:00:00]} Rxf2+ {[%emt 0:00:00]} 54. Kg1 {[%emt 0:00:00]} Rab2 {[%emt 0:00:00] ...Rf6 is the strong threat.} 55. h4 {[%emt 0:00:00]} Rf4 {[%emt 0:00:00] ...Rc2 would be deadly.} 56. Kh1 {[%emt 0:01:18]} Rbf2 {[%emt 0:00:00]} (56... Rxg4 $2 57. Qxf7+ Kh8 58. Qg8#) 57. Kg1 {[%emt 0:00:54]} R2f3 {[%emt 0:00:54]} ({Not} 57... Rxg4+ 58. Kxf2 Rf4+ 59. Ke2 $16) 58. Kg2 {[%emt 0:00:16]} Rc3 {[%emt 0:00:26]} (58... Rxg4+ {gets mated.} 59. Kxf3 Kh8 60. Qxf7) 59. h5 {[%emt 0:00:48]} d3 {[%emt 0:01:49]} 60. hxg6 {[%emt 0:00:53]} Rcxc4 {[%emt 0:00:10] Black mates.} ({Don't play} 60... Rfxc4 61. Qxf7+ Kh8 62. Qxf8#) 61. gxf7+ {[%emt 0:00:29]} Kg7 {[%emt 0:01:20]} 62. Qe5+ {[%emt 0:00:14]} Kxf7 {[%emt 0:00:06]} 63. Qd5+ {[%emt 0:00:43]} Kg7 {[%emt 0:00:18]} 64. g5 {[%emt 0:00:15]} Rg4+ {[%emt 0:00:44]} 65. Kf3 {[%emt 0:00:16]} Rcf4+ {[%emt 0:00:09]} 66. Ke3 {[%emt 0:00:06]} Rxg5 {[%emt 0:00:13] Weighted Error Value: White=0.67/Black=0.12 (very precise)} 0-1

[Event "Marienbad A2-GM 2024"]
[Site "Marianske Lazne"]
[Date "2024.01.18"]
[Round "7.7"]
[White "Nguyen, Alex Dac-Vuong"]
[Black "Lalic, Bogdan"]
[Result "1/2-1/2"]
[ECO "C78"]
[WhiteElo "2347"]
[BlackElo "2349"]
[Annotator "TA"]
[PlyCount "32"]
[EventDate "2024.01.10"]
[EventType "tourn"]
[EventCountry "CZE"]
[SourceTitle "playchess.com"]
[Source "ChessBase"]
[SourceQuality "1"]
[TimeControl "40/5400+30:1800+30"]

{[%evp 13,32,31,28,25,31,16,23,16,26,13,20,18,17,20,11,14,11,0,1,6,9]} 1. e4 {[%emt 0:00:04]} e5 {[%emt 0:07:36]} 2. Nf3 {[%emt 0:00:06]} Nc6 {[%emt 0:00:05]} 3. Bb5 {[%emt 0:00:04]} a6 {[%emt 0:00:07]} 4. Ba4 {[%emt 0:00:03]} Nf6 {[%emt 0:00:09]} 5. O-O {[%emt 0:00:06]} Bc5 {[%emt 0:00:09]} 6. c3 {[%emt 0:00:35]} O-O {[%emt 0:00:13]} 7. d4 {[%emt 0:00:47][%cal Bd2d4,Bd4e5][%mdl 32]} Ba7 {[%emt 0:00:13]} 8. dxe5 {[%emt 0:06:02] [#] And now Bxc6 would win. C78: Ruy Lopez: Archangelsk and Möller Defences.} Nxe4 {[%emt 0:00:09]} 9. Qd5 {[%emt 0:00:30]} Nc5 {[%emt 0:00:11]} 10. Bc2 {[%emt 0:00:27] White has an edge.} Ne7 {[%emt 0:00:43]} 11. Qd1 {[%emt 0:11:23][%cal Oc2h7] Bxh7+! is the strong threat.} (11. Qc4 {keeps more tension.} d5 12. exd6 cxd6 13. Bg5) 11... d5 {[%emt 0:00:14] The position is equal.} 12. exd6 {[%emt 0:00:35]} Qxd6 {[%emt 0:00:09]} 13. Qxd6 {[%emt 0:00:06]} cxd6 {[%emt 0:00:07] [#]} 14. Nd4 $146 {[%emt 0:14:11]} ({Predecessor:} 14. Na3 Bg4 15. Re1 Ne6 16. Ng5 h6 17. h3 Bf5 18. Nf3 Bc5 19. Bxf5 Nxf5 20. Nc2 Rad8 21. Ne3 Ne7 22. Nc2 Nf5 23. Ne3 Ne7 {½-½ Kovalev,V (2612)-Praggnanandhaa,R (2688) Sharjah Masters 6th 2023 (5)}) 14... Ne6 {[%emt 0:02:56]} 15. Nf3 {[%emt 0:05:20]} d5 {[%emt 0:01:39]} 16. Re1 {[%emt 0:00:26]} Nc6 {[%emt 0:00:22] Not much happened in this game.   Weighted Error Value: White=0.06 (flawless) /Black=0.00 (flawless)} 1/2-1/2

[Event "Marienbad A2-GM 2024"]
[Site "Marianske Lazne"]
[Date "2024.01.18"]
[Round "7.8"]
[White "Braeuer, Franz"]
[Black "Rasik, Vitezslav"]
[Result "0-1"]
[ECO "B80"]
[WhiteElo "2428"]
[BlackElo "2406"]
[Annotator "TA"]
[PlyCount "112"]
[EventDate "2024.01.10"]
[EventType "tourn"]
[EventCountry "CZE"]
[SourceTitle "playchess.com"]
[Source "ChessBase"]
[SourceQuality "1"]
[TimeControl "40/5400+30:1800+30"]

{[%evp 16,112,42,39,49,28,23,29,85,75,87,72,111,-44,-48,-49,-46,-55,18,0,0,0,0,-18,19,0,0,0,0,0,25,-18,-32,-12,-24,-77,-80,-64,-104,-97,0,0,0,-44,121,-25,128,62,111,-22,-26,-8,-12,-43,-43,-142,-144,-176,-188,-333,-83,-83,-121,-80,-46,-42,-45,-43,0,0,0,-316,-308,-383,-341,-331,-338,-323,-331,-413,-295,-416,-408,-609,-581,-1169,-1016,-1200,-918,-1548,-1487,-2000,-1885,-29964,-29962,-29977,-29978,-29979,-29975]} 1. e4 {[%emt 0:00:02]} c5 {[%emt 0:02:17]} 2. Nf3 {[%emt 0:00:15]} e6 {[%emt 0:00:25]} 3. d4 {[%emt 0:00:07]} cxd4 {[%emt 0:00:23]} 4. Nxd4 {[%emt 0:00:04]} Nf6 {[%emt 0:00:09]} 5. Nc3 {[%emt 0:00:39]} d6 {[%emt 0:00:16]} 6. Be3 {[%emt 0:00:28]} Be7 {[%emt 0:00:35]} 7. Qe2 {[%emt 0:01:08]} O-O {[%emt 0:08:11]} 8. O-O-O {[%emt 0:06:36][%cal Ba1d1,Bd1d4,Bd4c4][%mdl 32]} Nc6 {[%emt 0:03:38]} 9. f4 {[%emt 0:10:22]} Qc7 {[%emt 0:21:14] B82: Sicilian Scheveningen: 6 f4.} 10. g4 {[%emt 0:23:27]} Nxd4 {[%emt 0:04:33]} 11. Rxd4 {[%emt 0:00:04] [#]} e5 $146 {[%emt 0:06:16]} (11... d5 $1 $11 {keeps the balance.}) ({Predecessor:} 11... d5 12. e5 Nd7 13. Rd1 f6 14. exf6 Bxf6 15. Nb5 Qa5 16. g5 Be7 17. Kb1 Nc5 {1-0 Kazakouski,V (2524)-Manu David,S (2332) Helsingor Kronborg 2023 (3)}) 12. Rc4 $16 {[%emt 0:00:31]} Qd8 {[%emt 0:04:05]} 13. g5 {[%emt 0:10:03]} Ne8 {[%emt 0:08:19][%cal Ob7b5]} 14. f5 $2 {[%emt 0:07:24]} (14. Qd2 $16) 14... Bxg5 $15 {[%emt 0:08:55]} 15. Rg1 {[%emt 0:00:23]} Bxe3+ {[%emt 0:00:59]} 16. Qxe3 {[%emt 0:00:01] [#]} d5 {[%emt 0:07:06]} 17. exd5 {[%emt 0:09:45][%mdl 64] Discovered Attack} (17. Nxd5 {feels hotter.} Bxf5 18. exf5 Qxd5 19. Rh4) 17... Bxf5 {[%emt 0:00:41]} 18. Qxe5 {[%emt 0:03:00]} Bg6 {[%emt 0:00:21]} 19. h4 {[%emt 0:01:45][%cal Bh2h4,Bh4h5][%mdl 32]} Qf6 {[%emt 0:04:22]} (19... Nd6 $5 {[%cal Rd6c4]} 20. Rcg4 Re8 $11) 20. Qg3 {[%emt 0:01:02]} (20. Qxf6 {simplifies} Nxf6 21. d6 Rad8 22. Rd4) 20... Nd6 {[%emt 0:01:01]} 21. Rf4 {[%emt 0:00:35]} Qe5 {[%emt 0:01:07]} 22. Be2 {[%emt 0:01:35][%cal Oh4h5]} Rac8 {[%emt 0:05:22][%cal Oc8c3]} 23. h5 {[%emt 0:04:28] [#]} Bxc2 {[%emt 0:00:42][%mdl 64] Decoy} 24. Kxc2 {[%emt 0:07:29]} Qxe2+ {[%emt 0:00:34]} 25. Kb3 {[%emt 0:00:40]} (25. Kb1 $11 {remains equal.} Qe5 26. h6) 25... Qe5 $17 {[%emt 0:00:59]} (25... Qxh5 $2 26. Qxg7#) 26. h6 {[%emt 0:00:04]} g6 {[%emt 0:03:37] Chess con chili.} 27. Re1 {[%emt 0:00:18]} Nf5 {[%emt 0:01:23]} ({Better is} 27... Qh5 $17 28. Rh4 Nf5 29. Rxh5 Nxg3) 28. Rxe5 $11 {[%emt 0:02:05]} Nxg3 {[%emt 0:00:01]} 29. Re7 {[%emt 0:00:17]} (29. d6 $5 {[%cal Rc3d5]} f5 30. d7 $11) 29... Rb8 $2 {[%emt 0:01:58]} (29... Nf5 $15 {keeps the upper hand.} 30. Rxb7 Nxh6) 30. Rb4 {[%emt 0:03:10]} (30. Ne4 $16 Nxe4 31. Rfxe4) 30... f5 $2 {[%emt 0:00:28]} ({Black should play} 30... Nf5 $11 31. Rexb7 Rxb7 32. Rxb7 Nxh6) 31. Rg7+ $16 {[%emt 0:03:16]} (31. Rexb7 $6 Rxb7 32. Rxb7 Rf7 33. Rb8+ Rf8 $11) 31... Kh8 {[%emt 0:00:01]} 32. Rgxb7 {[%emt 0:02:19]} (32. Rbxb7 $6 Rxb7+ 33. Rxb7 f4 $11) (32. Rc4 $1 $16) 32... Rxb7 $11 {[%emt 0:00:13]} 33. Rxb7 $16 {[%emt 0:00:01][%cal Ob7c7][%mdl 4096] Endgame KRN-KRN} f4 {[%emt 0:00:18]} 34. Nd1 {[%emt 0:01:28][%cal Od1f2]} Nf5 {[%emt 0:02:00]} 35. Rxa7 {[%emt 0:00:16]} (35. Nf2 $1 $15) 35... g5 $17 {[%emt 0:00:35]} 36. Nf2 {[%emt 0:00:36] aiming for Ng4.} Nxh6 {[%emt 0:00:22]} 37. Ne4 {[%emt 0:01:55]} (37. Ra6 $142 Kg7 38. Ra5) 37... f3 $2 {[%emt 0:00:29]} (37... g4 $19 {is more deadly.} 38. Ng5 f3 39. Rxh7+ (39. Nxh7 $2 f2 $19) 39... Kg8 40. Rxh6 f2 41. Rg6+ Kh8 42. Rh6+ Kg8) 38. d6 {[%emt 0:00:26][%cal Od6d7] [#]} (38. Nxg5 $2 f2 39. Rxh7+ Kg8 40. Rxh6 Rb8+ 41. Kc2 f1=Q $19) 38... f2 $1 {[%emt 0:02:12]} 39. Nxf2 {[%emt 0:00:18][%mdl 64] Deflection} Rf3+ {[%emt 0:00:33]} 40. Kc4 {[%emt 0:00:58]} Rxf2 $15 {[%emt 0:00:20] KRN-KR} 41. Re7 {[%emt 0:10:14] Strongly threatening d7.} Rd2 {[%emt 0:09:38]} (41... Rxb2 $2 42. d7 Rd2 43. Re8+ Kg7 44. d8=Q (44. d8=R Rxa2 45. Ra8 Rxa8 $11) 44... Rxd8 45. Rxd8 $18) 42. d7 {[%emt 0:00:57]} Ng8 {[%emt 0:00:58][%mdl 64] Deflection} 43. Re5 {[%emt 0:00:32][%mdl 8192] [#]} (43. Rf7 $1 $11 {and White stays safe.}) 43... h6 $1 $19 {[%emt 0:00:55]} ({Weaker is} 43... Rxd7 44. Rxg5 Rc7+ 45. Kb5 $17) 44. a4 {[%emt 0:00:27]} (44. Rd5 Rxd5 45. Kxd5 Nf6+ 46. Ke5 Nxd7+ 47. Kf5 Nb6 $19) 44... Rxd7 {[%emt 0:01:34]} 45. b4 {[%emt 0:00:49]} Kg7 {[%emt 0:04:04]} 46. b5 {[%emt 0:01:58]} Kf6 {[%emt 0:00:58]} 47. Re1 {[%emt 0:01:40]} Ne7 {[%emt 0:01:09] Hoping for ...g4.} 48. a5 {[%emt 0:02:49]} (48. Rf1+ {was worth a try.} Ke5 49. b6) 48... g4 {[%emt 0:05:12][%cal Bg5g4,Bg4g3][%mdl 32]} 49. a6 {[%emt 0:05:31]} (49. b6 $142 h5 50. a6) 49... Nc8 {[%emt 0:04:26] White must now prevent ...g3.} 50. Kc5 {[%emt 0:04:45]} Rc7+ {[%emt 0:00:59]} 51. Kd4 {[%emt 0:01:38]} g3 {[%emt 0:02:07]} 52. Rf1+ {[%emt 0:01:20]} Kg5 {[%emt 0:02:01] ...Kg4 would be deadly.} 53. Rf8 {[%emt 0:00:17]} h5 {[%emt 0:00:43][%cal Bh6h5,Bh5h4][%mdl 32] ...Kh4 is the strong threat.} 54. Ke3 {[%emt 0:02:30]} Kg4 {[%emt 0:00:32] Black mates.} 55. Rg8+ {[%emt 0:01:40]} Kh3 {[%emt 0:00:10]} 56. Kf3 {[%emt 0:00:25]} h4 {[%emt 0:00:15] Weighted Error Value: White=0.92/Black=0.29 (precise)} 0-1

[Event "Marienbad A2-GM 2024"]
[Site "Marianske Lazne"]
[Date "2024.01.18"]
[Round "7.9"]
[White "Can, Isik"]
[Black "Agdelen, Huseyin Can"]
[Result "1-0"]
[ECO "B33"]
[WhiteElo "2500"]
[BlackElo "2409"]
[Annotator "TA"]
[PlyCount "87"]
[EventDate "2024.01.10"]
[EventType "tourn"]
[EventCountry "CZE"]
[SourceTitle "playchess.com"]
[Source "ChessBase"]
[SourceQuality "1"]
[TimeControl "40/5400+30:1800+30"]

{[%evp 26,87,19,14,18,10,37,13,18,0,0,-16,0,4,1,0,11,9,10,0,8,8,10,8,6,0,8,8,8,0,0,0,13,8,23,14,13,13,13,13,13,13,13,13,13,13,13,13,13,10,206,187,357,350,508,494,667,620,975,959,931,823,691,654]} 1. e4 {[%emt 0:00:03]} c5 {[%emt 0:11:10]} 2. Nf3 {[%emt 0:00:07]} Nc6 {[%emt 0:00:38]} 3. d4 {[%emt 0:00:05]} cxd4 {[%emt 0:00:04]} 4. Nxd4 {[%emt 0:00:02]} Nf6 {[%emt 0:00:04]} 5. Nc3 {[%emt 0:00:05]} e6 {[%emt 0:00:04]} 6. Ndb5 {[%emt 0:00:04]} d6 {[%emt 0:05:32]} 7. Bf4 {[%emt 0:00:10]} e5 {[%emt 0:00:05]} 8. Bg5 {[%emt 0:00:04]} a6 {[%emt 0:00:04]} 9. Na3 {[%emt 0:00:03]} b5 {[%emt 0:00:04]} 10. Nd5 {[%emt 0:00:06]} Be7 {[%emt 0:00:05]} 11. Bxf6 {[%emt 0:00:03]} Bxf6 {[%emt 0:00:03]} 12. c3 {[%emt 0:00:04]} Rb8 {[%emt 0:01:53]} 13. Nc2 {[%emt 0:01:00]} Bg5 {[%emt 0:00:06]} 14. a4 {[%emt 0:00:28] 14.Ncb4 is the modern continuation.} bxa4 {[%emt 0:00:05] B33: Sicilian: Pelikan and Sveshnikov Variations.} 15. Ncb4 {[%emt 0:00:03]} Nxb4 {[%emt 0:00:06]} 16. cxb4 {[%emt 0:00:04]} (16. Nxb4 $5 {[%cal Rb4c6]} Bd7 17. Bxa6 $11 (17. Qxd6 Be7 $15)) 16... O-O {[%emt 0:00:45] The position is equal.} 17. Qxa4 {[%emt 0:05:20]} Bb7 {[%emt 0:29:55]} 18. Bc4 {[%emt 0:24:13]} Bxd5 {[%emt 0:06:36]} (18... Qc8 $5 {[%cal Rc8c4]} 19. Qb3 Qg4 $11) 19. Bxd5 {[%emt 0:01:39]} Qb6 {[%emt 0:01:39] [#]} 20. b3 $146 {[%emt 0:17:59]} ({Predecessor:} 20. O-O Bd2 21. Qxa6 Qxa6 22. Rxa6 Bxb4 23. b3 Bc5 24. g3 g6 25. Kg2 Kg7 26. Rc6 Rfc8 27. Rxc8 Rxc8 28. Rc1 Rb8 29. Ra1 f5 30. f3 Kf6 31. h4 h5 {½-½ Zawadzka,J (2439)-Paehtz,E (2489) GRE-chT 46th 2018 (6.2)}) 20... Be3 {[%emt 0:18:44]} 21. O-O {[%emt 0:01:02]} (21. fxe3 $2 {is the wrong capture.} Qxe3+ 22. Kd1 (22. Kf1 $2 Rfc8 $19) 22... Rfc8 $19) 21... Bd4 {[%emt 0:00:44]} 22. Ra2 {[%emt 0:00:50]} Qxb4 {[%emt 0:02:04]} 23. Qxb4 {[%emt 0:01:12]} Rxb4 {[%emt 0:00:02]} 24. Rxa6 {[%emt 0:00:08]} Bc5 {[%emt 0:01:06]} 25. Ra4 {[%emt 0:00:47]} Rfb8 {[%emt 0:09:48]} 26. Rfa1 {[%emt 0:03:30]} g6 {[%emt 0:00:54]} 27. Kf1 {[%emt 0:06:54]} Kg7 {[%emt 0:00:29]} 28. g4 {[%emt 0:04:28]} f6 {[%emt 0:03:54]} 29. h4 {[%emt 0:02:24]} Kh6 {[%emt 0:01:40]} 30. Rxb4 {[%emt 0:08:40]} Rxb4 $11 {[%emt 0:00:14][%mdl 4096] Endgame KRB-KRB} 31. Bc4 {[%emt 0:00:08]} Rb8 {[%emt 0:01:49]} 32. Ke2 {[%emt 0:02:39]} Rf8 {[%emt 0:00:43]} 33. Be6 {[%emt 0:01:22]} Re8 {[%emt 0:00:23]} 34. Bd5 {[%emt 0:00:07]} Rb8 {[%emt 0:03:59]} 35. f3 {[%emt 0:03:17]} Kg7 {[%emt 0:00:45]} 36. Ra6 {[%emt 0:00:22]} Rc8 {[%emt 0:00:33]} 37. Kd3 {[%emt 0:02:03]} g5 $2 {[%emt 0:01:31] [#] Black cannot hold the game after this.} (37... Kh6 $11 {and Black has nothing to worry.}) 38. h5 $1 $18 {[%emt 0:00:06][%cal Bh4h5,Bh5h6][%mdl 32]} Kf8 $2 {[%emt 0:00:36] [#]} (38... h6 39. Be6 Rb8) 39. h6 $1 {[%emt 0:08:19]} Ke7 {[%emt 0:00:21] [#]} (39... Ke8 $142 40. Be6 Rb8) 40. b4 $1 {[%emt 0:02:42][%mdl 576] Deflection. White is clearly winning.} Bxb4 {[%emt 0:00:41]} (40... Bd4 41. Rc6) 41. Ra7+ {[%emt 0:30:58][%mdl 64] Skewer} Kf8 {[%emt 0:03:23]} 42. Rxh7 {[%emt 0:00:00] Rh8+ would kill now.} Rc3+ {[%emt 0:00:39]} 43. Ke2 {[%emt 0:00:00] Rf7+ would be deadly.} Rc2+ {[%emt 0:01:45]} 44. Kd1 {[%emt 0:00:00] Weighted Error Value: White=0.04 (flawless) /Black=0.33} 1-0